fUST/lending_fUST_20251110
["ID","MTS","AMOUNT","RATE_DAILY","PERIOD"]
[393521790,1762758642927,-169.122752,0.00019888,7]
[393521792,1762758642936,-185.949171,0.00019888,7]
[393521794,1762758642946,-316.348922,0.00019888,7]
[393521796,1762758642956,-185.949171,0.00019888,7]
[393521798,1762758642965,-316.348922,0.00019888,7]
[393521800,1762758642974,-185.949171,0.00019888,7]
[393521802,1762758642984,-316.348922,0.00019888,7]
[393521803,1762758642995,-185.949171,0.00019888,7]
[393521804,1762758643004,-316.348922,0.00019888,7]
[393521805,1762758643014,-316.348927,0.00019888,7]
[393521806,1762758643025,-185.949171,0.00019888,7]
[393521807,1762758643035,-185.949171,0.00019888,7]
[393521808,1762758643045,-185.949171,0.00019888,7]
[393521809,1762758643054,-185.949171,0.00019888,7]
[393521810,1762758643064,-185.949171,0.00019888,7]
[393521812,1762758643074,-185.949174,0.00019888,7]
[393521813,1762758643083,-151.0,0.00019888,7]
[393521814,1762758643093,-151.0,0.00019888,7]
[393521815,1762758643103,-151.0,0.00019888,7]
[393521816,1762758643179,-151.0,0.00019888,7]
[393521817,1762758643189,-151.0,0.00019888,2]
[393521818,1762758643199,-151.764621,0.00019888,2]
[393521819,1762758643209,-10000.0,0.00019888,7]
[393521820,1762758643219,-10000.0,0.00019888,7]
[393521821,1762758643229,-10000.0,0.00019888,7]
[393521822,1762758643239,-10000.0,0.00019888,7]
[393521823,1762758643250,-10000.0,0.00019888,7]
[393521824,1762758643259,-10000.0,0.00019888,7]
[393521825,1762758643269,-10000.0,0.00019888,7]
[393521826,1762758643282,-10000.0,0.00019888,7]
[393521827,1762758643292,-10000.0,0.00019888,7]
[393521828,1762758643302,-10000.0,0.00019888,7]
[393521829,1762758643311,-10000.0,0.00019888,7]
[393521830,1762758643321,-10000.0,0.00019888,7]
[393521831,1762758643331,-10000.0,0.00019888,7]
[393521832,1762758643340,-151.0,0.00019888,7]
[393521833,1762758643350,-10000.0,0.00019888,7]
[393521834,1762758643361,-151.0,0.00019888,7]
[393521835,1762758643371,-10000.0,0.00019888,7]
[393521836,1762758643380,-151.0,0.00019888,7]
[393521837,1762758643390,-10000.0,0.00019888,7]
[393521838,1762758643399,-151.0,0.00019888,7]
[393521839,1762758643409,-736.72772,0.00019888,7]
[393521840,1762758643418,-10000.0,0.00019888,7]
[393521841,1762758643427,-151.0,0.00019888,7]
[393521842,1762758643436,-10000.0,0.00019888,7]
[393521843,1762758643445,-151.0,0.00019888,7]
[393521844,1762758643455,-736.72772,0.00019888,7]
[393521845,1762758643464,-10000.0,0.00019888,7]
[393521846,1762758643473,-151.0,0.00019888,7]
[393521847,1762758643483,-2023.29473449,0.00019888,7]
[393521848,1762758643493,-736.72772,0.00019888,7]
[393521849,1762758643502,-255.975559,0.00019888,7]
[393521850,1762758643512,-736.72772,0.00019888,7]
[393521851,1762758643521,-151.0,0.00019888,7]
[393521852,1762758643531,-151.0,0.00019888,7]
[393521853,1762758643540,-736.72772,0.00019888,7]
[393521855,1762758643550,-151.0,0.00019888,7]
[393521857,1762758643559,-736.72772,0.00019888,7]
[393521859,1762758643568,-151.0,0.00019888,7]
[393521861,1762758643577,-736.72772,0.00019888,7]
[393521863,1762758643587,-736.72772,0.00019888,7]
[393521864,1762758643597,-151.0,0.00019888,7]
[393521865,1762758643606,-736.72772,0.00019888,7]
[393521866,1762758643616,-151.0,0.00019888,7]
[393521867,1762758643626,-736.72772,0.00019888,7]
[393521868,1762758643635,-151.0,0.00019888,7]
[393521869,1762758643645,-736.72772,0.00019888,7]
[393521870,1762758643655,-151.0,0.00019888,7]
[393521871,1762758643664,-736.72772,0.00019888,7]
[393521872,1762758643674,-151.0,0.00019888,7]
[393521873,1762758643684,-736.72772,0.00019888,7]
[393521874,1762758643694,-736.72772,0.00019888,7]
[393521875,1762758643704,-736.72772,0.00019888,7]
[393521876,1762758643713,-736.727716,0.00019888,7]
[393521877,1762758643723,-151.0,0.00019888,7]
[393521878,1762758643732,-151.0,0.00019888,7]
[393521879,1762758643742,-151.0,0.00019888,7]
[393521880,1762758643752,-151.0,0.00019888,7]
[393521881,1762758643761,-156.344288,0.00019888,7]
[393521882,1762758643771,-151.0,0.00019888,7]
[393521883,1762758643780,-175.612808,0.00019888,7]
[393521884,1762758643790,-298.324626,0.00019888,7]
[393521885,1762758643800,-298.324626,0.00019888,7]
[393521886,1762758643810,-298.324626,0.00019888,7]
[393521887,1762758643820,-298.324626,0.00019888,7]
[393521888,1762758643829,-298.324626,0.00019888,7]
[393521889,1762758643839,-298.324626,0.00019888,7]
[393521890,1762758643849,-298.324626,0.00019888,7]
[393521891,1762758643858,-298.324626,0.00019888,7]
[393521892,1762758643868,-298.324626,0.00019888,7]
[393521893,1762758643878,-298.324626,0.00019888,7]
[393521894,1762758643887,-298.324626,0.00019888,7]
[393521895,1762758643897,-257.178276,0.00019888,7]
[393521896,1762758643907,-298.324627,0.00019888,7]
[393521897,1762758643916,-151.0,0.00019888,7]
[393521898,1762758643925,-151.0,0.00019888,7]
[393521899,1762758643935,-288.899364,0.00019888,7]
[393521900,1762758643944,-407.067234,0.00019888,7]
[393521901,1762758643953,-407.067234,0.00019888,7]
[393521902,1762758643963,-151.0,0.00019888,7]
[393521903,1762758643973,-407.067234,0.00019888,7]
[393521904,1762758643982,-151.0,0.00019888,7]
[393521905,1762758643992,-151.0,0.00019888,7]
[393521906,1762758644002,-407.067234,0.00019888,7]
[393521907,1762758644012,-407.067234,0.00019888,7]
[393521908,1762758644022,-151.0,0.00019888,7]
[393521909,1762758644031,-407.067234,0.00019888,7]
[393521910,1762758644041,-151.0,0.00019888,7]
[393521911,1762758644051,-151.0,0.00019888,7]
[393521912,1762758644062,-259.519023,0.00019888,7]
[393521913,1762758644071,-167.151742,0.00019888,7]
[393521914,1762758644081,-407.067234,0.00019888,7]
[393521915,1762758644091,-407.067234,0.00019888,7]
[393521916,1762758644101,-407.067234,0.00019888,7]
[393521917,1762758644111,-407.067234,0.00019888,7]
[393521918,1762758644120,-407.067234,0.00019888,7]
[393521919,1762758644129,-407.067231,0.00019888,7]
[393521920,1762758644138,-162.403477,0.00019888,7]
[393521921,1762758644148,-162.403477,0.00019888,7]
[393521922,1762758644157,-162.403477,0.00019888,7]
[393521923,1762758644166,-162.403477,0.00019888,7]
[393521924,1762758644175,-151.0,0.00019888,7]
[393521925,1762758644184,-162.403477,0.00019888,7]
[393521926,1762758644193,-151.0,0.00019888,7]
[393521927,1762758644203,-162.403477,0.00019888,7]
[393521928,1762758644212,-151.0,0.00019888,7]
[393521929,1762758644222,-162.403477,0.00019888,7]
[393521930,1762758644230,-151.0,0.00019888,7]
[393521931,1762758644240,-162.403477,0.00019888,7]
[393521932,1762758644250,-162.403477,0.00019888,7]
[393521933,1762758644259,-151.0,0.00019888,7]
[393521934,1762758644269,-151.0,0.00019888,7]
[393521935,1762758644279,-162.403477,0.00019888,7]
[393521936,1762758644291,-151.0,0.00019888,7]
[393521937,1762758644301,-162.403477,0.00019888,7]
[393521938,1762758644310,-151.0,0.00019888,7]
[393521939,1762758644319,-162.403474,0.00019888,7]
[393521940,1762758644330,-151.0,0.00019888,7]
[393521941,1762758644339,-180.0,0.00019889,2]
[393521942,1762758644348,-161.94416331,0.00019889,2]
[393521943,1762758644357,-151.0,0.0001989,7]
[393521944,1762758644371,-151.0,0.0001989,7]
[393521945,1762758644381,-195.238872,0.0001989,7]
[393521946,1762758644391,-500.0,0.0001989,7]
[393521947,1762758644400,-500.0,0.0001989,7]
[393521948,1762758644409,-500.0,0.0001989,7]
[393521949,1762758644419,-500.0,0.0001989,7]
[393521950,1762758644428,-151.0,0.0001989,7]
[393521951,1762758644437,-151.0,0.0001989,7]
[393521952,1762758644446,-235.135254,0.0001989,7]
[393521953,1762758644455,-151.0,0.0001989,7]
[393521954,1762758644465,-151.0,0.0001989,7]
[393521955,1762758644474,-238.818023,0.0001989,7]
[393521956,1762758644483,-155.454431,0.0001989,7]
[393521957,1762758644494,-151.0,0.0001989,7]
[393521958,1762758644503,-151.0,0.0001989,7]
[393521959,1762758644512,-151.0,0.0001989,7]
[393521960,1762758644521,-151.0,0.0001989,7]
[393521961,1762758644530,-151.0,0.0001989,7]
[393521962,1762758644539,-301.727635,0.0001989,7]
[393521963,1762758644549,-151.0,0.0001989,7]
[393521964,1762758644557,-156.856091,0.0001989,7]
[393521965,1762758644566,-151.0,0.0001989,7]
[393521966,1762758644576,-151.0,0.0001989,7]
[393521967,1762758644585,-151.0,0.0001989,7]
[393521968,1762758644594,-151.0,0.0001989,7]
[393521969,1762758644603,-151.0,0.0001989,7]
[393521970,1762758644612,-151.0,0.0001989,7]
[393521971,1762758644621,-151.0,0.0001989,7]
[393521972,1762758644631,-172.040848,0.0001989,7]
[393521973,1762758644640,-266.0,0.00019926,2]
[393521974,1762758644649,-500.0,0.00019973,2]
[393521975,1762758644658,-501.93229869,0.00019973,2]
[393521976,1762758644668,-500.0,0.00019973,2]
[393521977,1762758644677,-500.0,0.00019973,2]
[393521978,1762758644686,-500.0,0.00019973,2]
[393521979,1762758644696,-500.0,0.00019973,2]
[393521980,1762758644705,-500.0,0.00019973,2]
[393521981,1762758644714,-500.0,0.00019973,2]
[393521982,1762758644810,-500.0,0.00019973,2]
[393521983,1762758644820,-344.21970766,0.00019973,2]
[393521984,1762758644830,-500.0,0.00019973,2]
[393521985,1762758644839,-500.0,0.00019973,2]
[393521986,1762758644848,-500.0,0.00019973,2]
[393521987,1762758644858,-544.93850247,0.00019988,2]
[393521988,1762758644867,-180.669667,0.0001999,7]
[393521989,1762758644877,-151.0,0.0001999,7]
[393521990,1762758644887,-151.0,0.0001999,7]
[393521991,1762758644896,-151.0,0.0001999,7]
[393521992,1762758644905,-151.0,0.0001999,7]
[393521993,1762758644915,-500.0,0.0001999,7]
[393521994,1762758644924,-500.0,0.0001999,7]
[393521995,1762758644934,-500.0,0.0001999,7]
[393521996,1762758644943,-500.0,0.0001999,7]
[393521997,1762758644953,-500.0,0.0001999,7]
[393521998,1762758644962,-500.0,0.0001999,7]
[393521999,1762758644971,-500.0,0.0001999,7]
[393522000,1762758644980,-500.0,0.0001999,7]
[393522001,1762758644989,-500.0,0.0001999,7]
[393522002,1762758645000,-500.0,0.0001999,7]
[393522003,1762758645009,-500.0,0.0001999,7]
[393522004,1762758645018,-500.0,0.0001999,7]
[393522005,1762758645028,-500.0,0.0001999,7]
[393522006,1762758645039,-500.0,0.0001999,7]
[393522007,1762758645049,-500.0,0.0001999,7]
[393522008,1762758645058,-500.0,0.0001999,7]
[393522009,1762758645067,-151.0,0.0001999,7]
[393522010,1762758645077,-151.0,0.0001999,7]
[393522011,1762758645087,-151.0,0.0001999,7]
[393522012,1762758645096,-151.0,0.0001999,7]
[393522013,1762758645105,-151.0,0.0001999,7]
[393522014,1762758645114,-151.0,0.0001999,7]
[393522015,1762758645123,-151.0,0.0001999,7]
[393522016,1762758645133,-151.0,0.0001999,7]
[393522017,1762758645142,-151.0,0.0001999,7]
[393522018,1762758645151,-151.0,0.0001999,7]
[393522019,1762758645160,-151.0,0.0001999,7]
[393522020,1762758645170,-151.0,0.0001999,7]
[393522021,1762758645179,-2000.0,0.0002,7]
[393522022,1762758645189,-266.0,0.00020066,2]
[393522023,1762758645198,-1500.0,0.00020068,2]
[393522024,1762758645207,-1500.0,0.00020068,2]
[393522025,1762758645217,-1500.0,0.00020068,2]
[393522026,1762758645226,-225.0,0.00020092,2]
[393522027,1762758645235,-426.686761,0.00020187,2]
[393522028,1762758645244,-151.0,0.000202,4]
[393522029,1762758645253,-266.0,0.00020221,2]
[393522030,1762758645263,-224.06978965,0.00020262,2]
[393522031,1762758645273,-151.0,0.000203,3]
[393522032,1762758645287,-151.0,0.000203,3]
[393522033,1762758645297,-533.77733764,0.00020319,2]
[393522034,1762758645306,-266.0,0.00020383,2]
[393522035,1762758645315,-346.88213825,0.00020388,2]
[393522036,1762758645326,-503.67247936,0.00020388,2]
[393522037,1762758645335,-371.48973302,0.00020388,2]
[393522038,1762758645344,-313.71523239,0.0002039,7]
[393522039,1762758645355,-495.08915476,0.00020421,2]
[393522040,1762758645364,-1000.0,0.00020421,2]
[393522041,1762758645373,-1000.0,0.00020421,2]
[393522042,1762758645382,-1000.0,0.00020421,2]
[393522043,1762758645392,-1000.0,0.00020421,2]
[393522044,1762758645400,-1000.0,0.00020421,2]
[393522045,1762758645410,-691.57194593,0.00020421,2]
[393522046,1762758645420,-1000.0,0.00020421,2]
[393522047,1762758645429,-1006.27268725,0.00020421,2]
[393522048,1762758645439,-617.96000574,0.00020421,2]
[393522049,1762758645448,-505.98800299,0.00020421,2]
[393522050,1762758645457,-1000.0,0.00020421,2]
[393522051,1762758645466,-1000.0,0.00020421,2]
[393522052,1762758645475,-1000.0,0.00020421,2]
[393522053,1762758645485,-1000.0,0.00020421,2]
[393522054,1762758645494,-1000.0,0.00020421,2]
[393522055,1762758645503,-1000.0,0.00020421,2]
[393522056,1762758645513,-1000.0,0.00020421,2]
[393522057,1762758645522,-1000.0,0.00020421,2]
[393522058,1762758645532,-1000.0,0.00020421,2]
[393522059,1762758645541,-426.38011727,0.00020421,2]
[393522060,1762758645551,-868.99360965,0.00020421,2]
[393522061,1762758645561,-1000.0,0.00020421,2]
[393522062,1762758645570,-1000.0,0.00020421,2]
[393522063,1762758645580,-1000.0,0.00020421,2]
[393522064,1762758645589,-1000.0,0.00020421,2]
[393522065,1762758645598,-1000.0,0.00020421,2]
[393522066,1762758645608,-730.79248641,0.00020421,2]
[393522067,1762758645618,-1000.0,0.00020421,2]
[393522068,1762758645628,-1014.58845881,0.00020421,2]
[393522069,1762758645638,-1000.0,0.00020421,2]
[393522070,1762758645648,-1000.0,0.00020421,2]
[393522071,1762758645657,-516.37118205,0.00020421,2]
[393522072,1762758645667,-1000.0,0.00020421,2]
[393522073,1762758645677,-1000.0,0.00020421,2]
[393522074,1762758645686,-1000.0,0.00020421,2]
[393522075,1762758645695,-731.36320512,0.00020431,2]
[393522076,1762758645705,-311.41235113,0.00020486,2]
[393522077,1762758645715,-355.89982987,0.00020486,2]
[393522078,1762758645724,-502.0,0.00020513,2]
[393522079,1762758645734,-637.75307896,0.00020521,2]
[393522080,1762758645744,-619.52879717,0.00020521,2]
[393522081,1762758645753,-181.9124498,0.00020521,2]
[393522082,1762758645763,-1000.0,0.00020521,2]
[393522083,1762758645772,-1014.71058086,0.00020521,2]
[393522084,1762758645781,-279.86785085,0.00020521,2]
[393522085,1762758645791,-505.40395855,0.00020521,2]
[393522086,1762758645801,-1000.0,0.00020521,2]
[393522087,1762758645810,-167.8613438,0.00020521,2]
[393522088,1762758645820,-1000.0,0.00020521,2]
[393522089,1762758645829,-716.01215192,0.00020521,2]
[393522091,1762758645841,-502.0,0.0002053,2]
[393522093,1762758645850,-266.0,0.00020545,2]
[393522095,1762758645860,-500.0,0.00020547,2]
[393522096,1762758645869,-500.0,0.00020571,2]
[393522097,1762758645878,-500.0,0.00020571,2]
[393522098,1762758645888,-500.0,0.00020571,2]
[393522099,1762758645897,-500.0,0.00020572,2]
[393522100,1762758645906,-266.0,0.00020574,2]
[393522101,1762758645915,-266.0,0.00020583,2]
[393522102,1762758645925,-420.0,0.00020585,2]
[393522103,1762758645934,-500.0,0.00020589,2]
[393522104,1762758645943,-500.0,0.00020589,2]
[393522105,1762758645952,-500.0,0.00020589,2]
[393522106,1762758645961,-500.0,0.00020589,2]
[393522107,1762758645972,-546.87473893,0.00020589,2]
[393522108,1762758645981,-264.17501916,0.00020596,2]
[393522109,1762758645990,-500.0,0.00020596,2]
[393522110,1762758646001,-500.0,0.00020596,2]
[393522111,1762758646010,-2000.0,0.00020616,2]
[393522112,1762758646020,-2000.0,0.00020616,2]
[393522113,1762758646030,-2000.0,0.00020616,2]
[393522114,1762758646040,-502.0,0.00020628,2]
[393522115,1762758646049,-502.0,0.00020637,2]
[393522116,1762758646061,-266.0,0.00020642,2]
[393522117,1762758646070,-502.0,0.00020669,2]
[393522118,1762758646080,-1680.0,0.00020684,2]
[393522119,1762758646089,-266.0,0.00020684,2]
[393522120,1762758646098,-300.0,0.00020705,2]
[393522121,1762758646107,-300.0,0.00020705,2]
[393522122,1762758646116,-300.0,0.00020705,2]
[393522123,1762758646125,-300.0,0.00020705,2]
[393522124,1762758646134,-300.0,0.00020705,2]
[393522125,1762758646143,-300.0,0.00020705,2]
[393522126,1762758646152,-300.0,0.00020705,2]
[393522127,1762758646162,-300.0,0.00020705,2]
[393522128,1762758646171,-300.0,0.00020705,2]
[393522129,1762758646180,-300.0,0.00020705,2]
[393522130,1762758646189,-300.0,0.00020705,2]
[393522131,1762758646198,-300.0,0.00020705,2]
[393522132,1762758646207,-300.0,0.00020705,2]
[393522139,1762758646285,-300.0,0.00020705,2]
[393522141,1762758646295,-300.0,0.00020705,2]
[393522143,1762758646305,-500.0,0.00020747,2]
[393522145,1762758646314,-500.0,0.00020747,2]
[393522146,1762758646324,-502.0,0.00020751,2]
[393522148,1762758646334,-160.0,0.0002078,2]
[393522149,1762758646343,-502.0,0.0002079,2]
[393522150,1762758646353,-600.0,0.00020794,2]
[393522152,1762758646363,-319.905642,0.00020889,2]
[393522154,1762758646372,-254.47644112,0.000209,2]
[393522155,1762758646381,-502.0,0.00020957,2]
[393522156,1762758646391,-1500.0,0.00020968,2]
[393522157,1762758646400,-1500.0,0.00020968,2]
[393522158,1762758646409,-1546.74028063,0.00020968,2]
[393522159,1762758646419,-1500.0,0.00020968,2]
[393522160,1762758646428,-1500.0,0.00020968,2]
[393522161,1762758646438,-1500.0,0.00020968,2]
[393522162,1762758646447,-1500.0,0.00020968,2]
[393522163,1762758646457,-1500.0,0.00020968,2]
[393522164,1762758646466,-1500.0,0.00020968,2]
[393522165,1762758646476,-1500.0,0.00020968,2]
[393522166,1762758646485,-1500.0,0.00020968,2]
[393522167,1762758646494,-1500.0,0.00020968,2]
[393522168,1762758646504,-1500.0,0.00020968,2]
[393522169,1762758646513,-1500.0,0.00020968,2]
[393522170,1762758646523,-1500.0,0.00020968,2]
[393522171,1762758646533,-1500.0,0.00020968,2]
[393522172,1762758646542,-161.77592953,0.00020968,2]
[393522173,1762758646552,-1500.0,0.00020968,2]
[393522174,1762758646561,-1500.0,0.00020968,2]
[393522175,1762758646571,-1500.0,0.00020968,2]
[393522176,1762758646580,-1500.0,0.00020968,2]
[393522177,1762758646590,-339.9148566,0.00020968,2]
[393522178,1762758646599,-1500.0,0.00020968,2]
[393522179,1762758646609,-1144.43467047,0.00020968,2]
[393522180,1762758646974,-176.33,0.000191,2]
[393522181,1762758646984,-176.33,0.000191,2]
[393522182,1762758646994,-176.33,0.000191,2]
[393522183,1762758647004,-176.33,0.000191,2]
[393522184,1762758647013,-91.81125455,0.000191,2]
[393522185,1762758647025,-84.51874545,0.000191,2]
[393522186,1762758647034,-176.33,0.000191,2]
[393522187,1762758647043,-176.33,0.000191,2]
[393522188,1762758647052,-95.53455455,0.000191,2]
[393522189,1762758647063,-80.79544545,0.000191,2]
[393522190,1762758647072,-176.33,0.000191,2]
[393522191,1762758647081,-176.33,0.000191,2]
[393522192,1762758647091,-176.33,0.000191,2]
[393522193,1762758647100,-176.33,0.000191,2]
[393522194,1762758647110,-176.33,0.000191,2]
[393522195,1762758647119,-291.051027,0.00019873,7]
[393522196,1762758647128,-151.0,0.00019873,7]
[393522197,1762758647138,-151.0,0.00019873,7]
[393522198,1762758647148,-151.0,0.00019888,7]
[393522199,1762758647157,-151.0,0.00019888,7]
[393522200,1762758647167,-151.0,0.00019888,7]
[393522201,1762758647176,-251.54111564,0.00020695,2]
[393522203,1762758647186,-160.9811151,0.00020968,2]
[393522204,1762758647195,-1500.0,0.00020968,2]
[393522205,1762758647205,-1500.0,0.00020968,2]
[393522207,1762758647214,-502.0,0.0002104,2]
[393522208,1762758647223,-502.0,0.00021067,2]
[393522209,1762758647232,-1500.0,0.00021068,2]
[393522210,1762758647242,-1500.0,0.00021068,2]
[393522211,1762758647251,-1500.0,0.00021068,2]
[393522212,1762758647261,-174.0,0.00021086,2]
[393522213,1762758647271,-911.85107727,0.00021111,7]
[393522214,1762758647285,-534.94906441,0.00021111,7]
[393522215,1762758647296,-553.19985832,0.00021111,7]
[393522216,1762758647305,-1000.0,0.00021119,2]
[393522217,1762758647314,-27.93811913,0.00021119,2]
[393522218,1762758647326,-294.54076015,0.00021119,2]
[393522219,1762758647345,-677.52112072,0.00021119,2]
[393522220,1762758647354,-1009.10364879,0.00021119,2]
[393522221,1762758647365,-1000.0,0.00021144,2]
[393522222,1762758647374,-1000.0,0.00021144,2]
[393522223,1762758647383,-265.15870635,0.00021156,2]
[393522224,1762758647392,-502.0,0.00021162,2]
[393522225,1762758647401,-2500.0,0.00021164,2]
[393522226,1762758647410,-2500.0,0.00021164,2]
[393522227,1762758647419,-2500.0,0.00021164,2]
[393522228,1762758647428,-502.0,0.00021175,2]
[393522229,1762758647438,-502.0,0.00021285,2]
[393522230,1762758647447,-502.0,0.00021286,2]
[393522231,1762758647456,-1132.04361818,0.00021295,2]
[393522232,1762758647467,-260.0,0.00021328,2]
[393522233,1762758647478,-160.3537072,0.00021438,2]
[393522234,1762758647551,-153.0,0.00021438,2]
[393522235,1762758647560,-336.8538859,0.00021438,2]
[393522236,1762758647570,-153.0,0.00021438,2]
[393522237,1762758647579,-705.74836463,0.00021516,2]
[393522238,1762758647589,-1627.81870275,0.00021516,2]
[393522239,1762758647599,-2068.9826698,0.00021516,2]
[393522240,1762758647608,-1184.92834815,0.00021516,2]
[393522241,1762758647618,-2000.0,0.00021516,2]
[393522242,1762758647628,-1027.37996962,0.00021516,2]
[393522243,1762758647638,-311.86725788,0.00021516,2]
[393522244,1762758647682,-1688.13274212,0.00021516,2]
[393522245,1762758647692,-455.04910008,0.00021516,2]
[393522246,1762758647702,-2000.0,0.00021516,2]
[393522247,1762758647713,-2000.0,0.00021516,2]
[393522248,1762758647723,-2000.0,0.00021516,2]
[393522249,1762758647732,-2000.0,0.00021516,2]
[393522250,1762758647742,-522.92159442,0.00021516,2]
[393522251,1762758647752,-2000.0,0.00021516,2]
[393522252,1762758647762,-411.5194586,0.00021516,2]
[393522253,1762758647771,-757.71950185,0.00021516,2]
[393522254,1762758647781,-1515.18360682,0.00021516,2]
[393522255,1762758647791,-2000.0,0.00021516,2]
[393522256,1762758647800,-240.63927608,0.00021516,2]
[393522257,1762758647811,-808.17285807,0.00021516,2]
[393522258,1762758647824,-2000.0,0.00021516,2]
[393522259,1762758647834,-2000.0,0.00021616,2]
[393522260,1762758647843,-1599.25555679,0.00021616,2]
[393522261,1762758647854,-816.62583018,0.00021667,2]
[393522262,1762758647863,-1500.0,0.00021667,2]
[393522263,1762758647872,-150.0,0.00021691,2]
[393522264,1762758647881,-150.0,0.00021691,2]
[393522265,1762758647891,-250.0,0.00021691,2]
[393522266,1762758647900,-265.27,0.00021691,2]
[393522267,1762758647910,-212.989,0.00021691,2]
[393522268,1762758647920,-986.0,0.00021691,2]
[393522269,1762758647929,-2167.0,0.00021691,2]
[393522270,1762758647939,-628.0,0.00021691,2]
[393522271,1762758647948,-946.58381269,0.00021692,2]
[393522272,1762758647958,-1500.0,0.00021692,2]
[393522273,1762758647967,-3000.0,0.00021712,2]
[393522274,1762758647978,-3000.0,0.00021712,2]
[393522275,1762758647987,-3000.0,0.00021712,2]
[393522276,1762758648000,-360.0,0.00021876,2]
[393522277,1762758648009,-227.96277554,0.00021878,2]
[393522278,1762758648019,-2500.0,0.00022064,2]
[393522279,1762758648029,-506.54086938,0.00022064,2]
[393522280,1762758648038,-510.7455614,0.00022064,2]
[393522281,1762758648048,-512.19074474,0.00022064,2]
[393522282,1762758648057,-2500.0,0.00022064,2]
[393522283,1762758648067,-2500.0,0.00022064,2]
[393522284,1762758648076,-504.34678498,0.00022064,2]
[393522285,1762758648086,-2000.0,0.000221,2]
[393522286,1762758648097,-2500.0,0.00022164,2]
[393522287,1762758648106,-788.5999956,0.00022167,2]
[393522288,1762758648115,-319.905642,0.000222,7]
[393522289,1762758648124,-1460.74309695,0.00022215,2]
[393522290,1762758648134,-2000.0,0.00022222,7]
[393522291,1762758648144,-452.23997508,0.0002224,2]
[393522292,1762758648154,-222.10731625,0.0002226,2]
[393522293,1762758648163,-1880.06911728,0.0002226,2]
[393522294,1762758648215,-422.748628,0.0002226,2]
[393522295,1762758648227,-1197.18225472,0.0002226,2]
[393522296,1762758648236,-221.156831,0.0002226,2]
[393522297,1762758648247,-258.24992706,0.00022262,2]
[393522298,1762758648258,-460.0,0.00022424,2]
[393522299,1762758648267,-587.0,0.0002244,2]
[393522300,1762758648277,-2000.0,0.000225,2]
[393522301,1762758648291,-13826.8292848,0.00022513,2]
[393522302,1762758648300,-172.367,0.00022605,2]
[393522303,1762758648310,-356.62665718,0.00022612,2]
[393522304,1762758648319,-3000.0,0.00022612,2]
[393522305,1762758648329,-2351.0,0.00022658,2]
[393522306,1762758648338,-500.0,0.00022689,2]
[393522307,1762758648347,-500.0,0.00022689,2]
[393522308,1762758648358,-500.0,0.00022689,2]
[393522309,1762758648367,-500.0,0.00022689,2]
[393522310,1762758648376,-500.0,0.00022689,2]
[393522311,1762758648386,-500.0,0.00022689,2]
[393522312,1762758648395,-500.0,0.00022689,2]
[393522313,1762758648404,-500.0,0.00022689,2]
[393522314,1762758648413,-500.0,0.00022689,2]
[393522315,1762758648424,-3000.0,0.00022712,2]
[393522316,1762758648433,-337.24915217,0.00022783,2]
[393522317,1762758648443,-250.0,0.000228,5]
[393522318,1762758648452,-4000.0,0.00022808,2]